bitfinex/quotes_BTCUSD_20251031
["timestamp","ask_amount","ask_price","bid_price","bid_amount"]
[1761946340344,3.53834054,109660.0,109650.0,0.0516179]
[1761946340345,2.5376872,109660.0,109650.0,0.0516179]
[1761946340560,0.78445634,109660.0,109650.0,0.0516179]
[1761946340778,0.0153053,109660.0,109650.0,0.16139512]
[1761946340985,0.0153053,109660.0,109650.0,0.14315527]
[1761946341187,0.0153053,109660.0,109650.0,0.32555381]
[1761946342246,0.0153053,109660.0,109650.0,0.75470485]
[1761946342926,0.001,109660.0,109650.0,0.75470485]
[1761946345455,0.001,109660.0,109650.0,0.32555381]
[1761946345912,0.001,109660.0,109650.0,0.75470485]
[1761946346400,0.001,109660.0,109650.0,0.75870485]
[1761946346625,0.42915104,109680.0,109660.0,0.1823757]
[1761946346847,2.0,109670.0,109660.0,0.64804674]
[1761946347051,2.0,109670.0,109660.0,0.1944857]
[1761946347256,2.0,109670.0,109660.0,0.63887674]
[1761946347800,2.0,109670.0,109660.0,0.66328674]
[1761946348107,2.0,109680.0,109660.0,0.66328674]
[1761946348328,2.0,109680.0,109670.0,0.03652]
[1761946348536,2.0,109680.0,109670.0,0.05176]
[1761946349395,2.0,109680.0,109670.0,0.14329737]
[1761946349610,2.0,109680.0,109670.0,0.75481368]
[1761946350044,0.001,109680.0,109670.0,0.75481368]
[1761946351820,0.001,109680.0,109670.0,0.32566264]
[1761946352022,0.001,109680.0,109670.0,0.75481368]
[1761946352445,0.001,109680.0,109670.0,0.32566264]
[1761946352663,0.001,109680.0,109670.0,0.75481368]
[1761946353547,0.001,109680.0,109670.0,1.18396472]
[1761946353754,0.001,109680.0,109670.0,0.75481368]
[1761946354198,0.0143032,109690.0,109680.0,0.18234865]
[1761946354413,0.0143032,109690.0,109680.0,1.06800073]
[1761946354627,0.0143032,109690.0,109680.0,1.09241073]
[1761946354846,0.0143032,109690.0,109680.0,0.66325969]
[1761946355276,1.00711354,109710.0,109680.0,0.66325969]
[1761946355544,2.0,109700.0,109690.0,0.03652]
[1761946355748,2.1823154,109700.0,109690.0,0.03652]
[1761946355960,2.1823154,109700.0,109690.0,0.05176]
[1761946356586,2.0,109700.0,109690.0,0.05176]
[1761946356794,2.0,109700.0,109690.0,0.0518479]
[1761946357139,2.1833154,109700.0,109690.0,0.0518479]
[1761946358024,2.001,109700.0,109690.0,0.0518479]
[1761946358512,2.01529977,109700.0,109690.0,0.0518479]
[1761946360294,2.19761517,109700.0,109690.0,0.0518479]
[1761946361136,2.64284621,109700.0,109690.0,0.0274379]
[1761946361449,2.65133776,109700.0,109690.0,0.0274379]
[1761946361656,2.65133776,109700.0,109690.0,0.0518479]
[1761946361898,2.65133776,109700.0,109690.0,0.0274379]
[1761946363869,2.63703799,109700.0,109690.0,0.0274379]
[1761946364723,2.65975799,109700.0,109690.0,8.79e-05]
[1761946365096,2.63703799,109700.0,109690.0,0.0156979]
[1761946365315,2.65975799,109700.0,109690.0,8.79e-05]
[1761946367276,2.23060695,109700.0,109690.0,8.79e-05]
[1761946367487,3.06618903,109700.0,109690.0,8.79e-05]
[1761946368217,2.85869589,109700.0,109690.0,8.79e-05]
[1761946368431,2.63703799,109700.0,109690.0,8.79e-05]
[1761946369027,2.63703799,109700.0,109690.0,0.0156979]
[1761946369663,2.20788695,109700.0,109690.0,0.0156979]
[1761946369873,2.63703799,109700.0,109690.0,0.0156979]
[1761946370978,3.06618903,109700.0,109690.0,8.79e-05]
[1761946371183,3.48209686,109700.0,109690.0,8.79e-05]
[1761946372285,2.5488125,109700.0,109690.0,0.0503479]
[1761946372514,2.97796354,109700.0,109690.0,0.0503479]
[1761946373158,2.3664971,109700.0,109690.0,0.0503479]
[1761946373467,2.97796354,109700.0,109690.0,0.0503479]
[1761946373957,2.3807974,109700.0,109690.0,0.0503479]
[1761946374233,2.80994844,109700.0,109690.0,0.0503479]
[1761946374945,2.99226384,109700.0,109690.0,0.0503479]
[1761946375167,2.5631128,109700.0,109690.0,0.0503479]
[1761946375409,2.99226384,109700.0,109690.0,0.0503479]
[1761946377209,2.97796354,109700.0,109690.0,0.0503479]
[1761946377413,2.99758398,109700.0,109690.0,0.0503479]
[1761946378080,2.81526858,109700.0,109690.0,0.0503479]
[1761946378304,2.38611754,109700.0,109690.0,0.0503479]
[1761946379500,2.38611754,109700.0,109690.0,0.14188527]
[1761946379914,2.04611754,109700.0,109690.0,0.14188527]
[1761946380353,2.04611754,109700.0,109690.0,0.32421729]
[1761946380560,2.06041769,109700.0,109690.0,0.14188527]
[1761946381427,2.24273309,109700.0,109690.0,0.0503479]
[1761946381645,2.67188413,109700.0,109690.0,0.0503479]
[1761946382083,2.68746413,109700.0,109690.0,0.0276779]
[1761946382307,3.13933517,109700.0,109690.0,8.79e-05]
[1761946382527,2.71018413,109700.0,109690.0,8.79e-05]
[1761946383376,3.20793596,109700.0,109690.0,8.79e-05]
[1761946384236,2.77878492,109700.0,109690.0,8.79e-05]
[1761946384658,2.77878492,109700.0,109690.0,0.0276779]
[1761946384659,2.54133101,109700.0,109690.0,0.0276779]
[1761946385520,2.54103798,109700.0,109690.0,0.0276779]
[1761946386872,2.72335338,109700.0,109690.0,0.0276779]
[1761946387080,2.06041769,109700.0,109690.0,0.0503479]
[1761946388313,2.24273309,109700.0,109690.0,0.0503479]
[1761946388515,2.24130754,109700.0,109690.0,0.0276779]
[1761946388763,2.24130754,109700.0,109690.0,0.0503479]
[1761946389790,2.24130754,109700.0,109690.0,0.0276779]
[1761946390567,2.24405109,109700.0,109690.0,0.0276779]
[1761946391181,2.6729091,109700.0,109690.0,0.0276779]
[1761946392460,2.6558654,109700.0,109690.0,0.0276779]
[1761946393103,2.22700739,109700.0,109690.0,0.0276779]
[1761946393546,2.02911199,109700.0,109690.0,0.0517279]
[1761946394080,2.04341218,109700.0,109690.0,0.0517279]
[1761946395130,2.05879218,109700.0,109690.0,0.0517279]
[1761946397446,1.83325656,109700.0,109690.0,0.0517279]
[1761946397680,2.02968019,109700.0,109690.0,0.0517279]
[1761946401398,2.21199559,109700.0,109690.0,0.0517279]
[1761946402031,2.02968019,109700.0,109690.0,0.0517279]
[1761946402869,2.21199559,109700.0,109690.0,0.0517279]
[1761946403273,2.02968019,109700.0,109690.0,0.0517279]
[1761946406669,2.52968019,109700.0,109690.0,0.23405992]
[1761946406928,2.52968019,109700.0,109690.0,0.0517279]
[1761946407325,2.51538,109700.0,109690.0,0.0517279]
[1761946408167,2.51538,109700.0,109690.0,0.23405992]
[1761946408576,2.51538,109700.0,109690.0,0.0517279]
[1761946409396,2.52390496,109700.0,109690.0,0.0517279]
[1761946409598,2.52390496,109700.0,109690.0,0.23405992]
[1761946409987,2.52390496,109700.0,109690.0,0.0517279]
[1761946410542,2.5382051,109700.0,109690.0,0.0517279]
[1761946411051,2.5656093,109700.0,109690.0,0.0517279]
[1761946413061,2.5656093,109700.0,109690.0,0.23405992]
[1761946413266,2.5502293,109700.0,109690.0,0.23405992]
[1761946414623,2.5502293,109700.0,109690.0,0.0517279]
[1761946414823,2.5502293,109700.0,109690.0,0.23405992]
[1761946415231,2.5502293,109700.0,109690.0,0.32559729]
[1761946416202,0.51430014,109700.0,109690.0,0.7544553]
[1761946417399,0.51430014,109700.0,109690.0,0.7574553]
[1761946417606,0.51430014,109700.0,109690.0,0.7564553]
[1761946418118,0.51430014,109700.0,109690.0,0.7574553]
[1761946419117,0.51430014,109700.0,109690.0,0.7554553]
[1761946419315,0.51430014,109700.0,109690.0,0.7594553]
[1761946421585,0.5,109700.0,109690.0,0.7594553]
[1761946422996,0.5,109700.0,109690.0,0.33059729]
[1761946423346,0.5,109700.0,109690.0,0.7594553]
[1761946424860,0.51429848,109700.0,109690.0,0.7594553]
[1761946425057,0.51429848,109700.0,109690.0,0.33059729]
[1761946425276,0.51429848,109700.0,109690.0,0.7594553]
[1761946427268,0.5,109700.0,109690.0,0.7594553]
[1761946430528,0.51429863,109700.0,109690.0,0.7594553]
[1761946432049,0.51429863,109700.0,109690.0,0.14826527]
[1761946432259,0.51429863,109700.0,109690.0,0.33059729]
[1761946434947,0.51429863,109700.0,109690.0,0.7594553]
[1761946438544,0.31713372,109700.0,109690.0,0.7594553]
[1761946442012,0.33293372,109700.0,109690.0,0.0326779]
[1761946442228,3.00609941,109700.0,109690.0,0.0050879]
[1761946442459,3.04201417,109700.0,109690.0,0.0050879]
[1761946442877,3.04201417,109700.0,109690.0,0.0040879]
[1761946443105,3.04301417,109700.0,109690.0,8.79e-05]
[1761946443316,3.03350579,109700.0,109690.0,8.79e-05]
[1761946443534,3.04501366,109700.0,109690.0,8.79e-05]
[1761946443774,3.04601366,109700.0,109690.0,8.79e-05]
[1761946443995,3.02871503,109700.0,109690.0,8.79e-05]
[1761946444220,3.03171503,109700.0,109690.0,8.79e-05]
[1761946444450,3.02320716,109700.0,109690.0,8.79e-05]
[1761946444861,3.0317141,109700.0,109690.0,8.79e-05]
[1761946445200,3.02320716,109700.0,109690.0,8.79e-05]
[1761946445432,3.03171313,109700.0,109690.0,8.79e-05]
[1761946446450,3.02320716,109700.0,109690.0,8.79e-05]
[1761946447148,3.03750768,109700.0,109690.0,8.79e-05]
[1761946447583,3.46645497,109700.0,109690.0,8.79e-05]
[1761946451908,3.80645497,109700.0,109690.0,8.79e-05]
[1761946455164,3.77027269,109700.0,109690.0,8.79e-05]
[1761946457367,3.75597217,109700.0,109690.0,8.79e-05]
[1761946457577,2.89816687,109700.0,109690.0,8.79e-05]
[1761946457787,3.75597217,109700.0,109690.0,8.79e-05]
[1761946458425,4.23332683,109700.0,109690.0,8.79e-05]
[1761946458646,4.32734532,109700.0,109690.0,8.79e-05]
[1761946459920,4.3416533,109700.0,109690.0,8.79e-05]
[1761946460328,4.32734532,109700.0,109690.0,8.79e-05]
[1761946460756,4.34164863,109700.0,109690.0,8.79e-05]
[1761946461414,4.43146764,109700.0,109690.0,8.79e-05]
[1761946463392,4.4457757,109700.0,109690.0,8.79e-05]
[1761946464939,4.35595669,109700.0,109690.0,8.79e-05]
[1761946467415,4.3884351,109700.0,109690.0,8.79e-05]
[1761946468047,4.3844351,109700.0,109690.0,8.79e-05]
[1761946468250,4.5934351,109700.0,109690.0,8.79e-05]
[1761946468449,4.3934351,109700.0,109690.0,8.79e-05]
[1761946468650,4.48325411,109700.0,109690.0,8.79e-05]
[1761946469364,3.19654616,109700.0,109690.0,8.79e-05]
[1761946469509,4.48325411,109700.0,109690.0,8.79e-05]
[1761946470913,4.4689508,109700.0,109690.0,8.79e-05]
[1761946471333,4.51766841,109700.0,109690.0,8.79e-05]
[1761946471804,4.71766841,109700.0,109690.0,8.79e-05]
[1761946472027,4.69518999,109700.0,109690.0,8.79e-05]
[1761946473856,4.68088193,109700.0,109690.0,8.79e-05]
[1761946474312,4.69518647,109700.0,109690.0,8.79e-05]
[1761946476474,4.60536746,109700.0,109690.0,8.79e-05]
[1761946477126,4.61967629,109700.0,109690.0,8.79e-05]
[1761946477995,4.6096763,109700.0,109690.0,8.79e-05]
[1761946478244,4.61967629,109700.0,109690.0,8.79e-05]
[1761946478936,3.33296834,109700.0,109690.0,8.79e-05]
[1761946479124,4.61967629,109700.0,109690.0,8.79e-05]
[1761946479371,4.6096763,109700.0,109690.0,8.79e-05]
[1761946479589,4.61967629,109700.0,109690.0,8.79e-05]
[1761946480455,4.70948504,109700.0,109690.0,8.79e-05]
[1761946480881,4.69948505,109700.0,109690.0,8.79e-05]
[1761946481103,4.70948504,109700.0,109690.0,8.79e-05]
[1761946481316,4.69948505,109700.0,109690.0,8.79e-05]
[1761946481522,4.70948504,109700.0,109690.0,8.79e-05]
[1761946484135,4.73331755,109700.0,109690.0,8.79e-05]
[1761946484346,4.72331756,109700.0,109690.0,8.79e-05]
[1761946484559,4.73331755,109700.0,109690.0,8.79e-05]
[1761946485387,0.1823888,109660.0,109640.0,0.03791645]
[1761946485597,2.0,109650.0,109640.0,0.03806114]
[1761946486038,2.01430555,109650.0,109640.0,0.05352114]
[1761946486254,0.01430555,109650.0,109640.0,0.05352114]
[1761946486688,0.01430555,109650.0,109640.0,0.05652114]
[1761946486846,0.01430555,109650.0,109640.0,0.05752114]
[1761946487048,0.01430555,109650.0,109640.0,0.05452114]
[1761946487264,0.01430555,109650.0,109640.0,0.05952114]
[1761946488889,0.02432847,109650.0,109640.0,0.05952114]
[1761946489095,0.03370847,109650.0,109640.0,0.05952114]
[1761946489727,0.04903847,109650.0,109640.0,0.05952114]
[1761946490847,0.02368555,109650.0,109640.0,0.67083896]
[1761946491228,0.02368555,109650.0,109640.0,0.48842379]
[1761946491652,0.02368555,109650.0,109640.0,0.05952114]
[1761946492884,0.01430555,109650.0,109640.0,0.05952114]
[1761946493849,0.02427334,109650.0,109640.0,0.24193631]
[1761946494047,0.02427334,109650.0,109640.0,0.05952114]
[1761946496455,0.03365334,109650.0,109640.0,0.05952114]
[1761946501720,0.47788599,109650.0,109640.0,0.01945114]
[1761946501932,2.68300453,109650.0,109640.0,0.00770114]
[1761946502313,2.66869898,109650.0,109640.0,0.00770114]
[1761946502525,3.00869898,109650.0,109640.0,0.00770114]
[1761946502725,3.05387151,109650.0,109640.0,0.00770114]
[1761946503336,3.02832147,109650.0,109640.0,0.00770114]
[1761946503842,3.02832147,109650.0,109640.0,0.00270114]
[1761946504175,3.03032147,109650.0,109640.0,0.00270114]
[1761946504353,3.01069898,109650.0,109640.0,0.00170114]
[1761946504594,3.01169898,109650.0,109640.0,0.00170114]
[1761946505601,3.02600619,109650.0,109640.0,0.00170114]
[1761946507410,3.02638214,109650.0,109640.0,0.00170114]
[1761946507620,3.01207493,109650.0,109640.0,0.00170114]
[1761946511013,3.02638222,109650.0,109640.0,0.00170114]
[1761946512692,2.59710362,109650.0,109640.0,0.00170114]
[1761946512910,3.02638222,109650.0,109640.0,0.00170114]
[1761946513358,2.84398368,109650.0,109640.0,0.00170114]
[1761946513561,3.02638222,109650.0,109640.0,0.00170114]
[1761946513770,0.36668729,109650.0,109640.0,0.05318114]
[1761946513974,0.01730729,109650.0,109640.0,0.66487491]
[1761946514598,0.001,109650.0,109640.0,0.66487491]
[1761946515841,0.001,109650.0,109640.0,0.66587491]
[1761946515998,0.51707955,109670.0,109650.0,0.18239854]
[1761946515999,0.01430472,109660.0,109650.0,0.18239854]
[1761946516208,0.01430472,109660.0,109650.0,0.30992591]
[1761946516499,0.01430472,109660.0,109650.0,0.32541591]
[1761946517294,0.01430472,109660.0,109650.0,0.32841591]
[1761946517714,0.01430472,109660.0,109650.0,0.32941591]
[1761946518331,0.51707955,109670.0,109660.0,0.1823819]
[1761946518332,2.35707955,109670.0,109660.0,0.1823819]
[1761946518539,2.35707955,109670.0,109660.0,0.2329319]
[1761946519368,2.35707955,109670.0,109660.0,0.2339319]
[1761946520755,2.0,109670.0,109660.0,0.2339319]
[1761946521709,0.014304,109670.0,109660.0,0.2339319]
[1761946524353,0.00667,109680.0,109670.0,0.18236527]
[1761946524577,2.00667,109680.0,109670.0,0.23285527]
[1761946525468,2.0,109680.0,109670.0,0.23285527]
[1761946525685,2.002,109680.0,109670.0,0.23285527]
[1761946525927,2.003,109680.0,109670.0,0.23285527]
[1761946526358,2.01530289,109680.0,109670.0,0.23285527]
[1761946526579,2.01530289,109680.0,109670.0,0.23585527]
[1761946526819,2.01430289,109680.0,109670.0,0.23585527]
[1761946527062,2.01430289,109680.0,109670.0,0.23685527]
[1761946534194,2.0,109680.0,109670.0,0.23685527]
[1761946534705,2.0,109680.0,109670.0,0.32839264]
[1761946537380,0.01430255,109680.0,109670.0,0.32839264]
[1761946537582,2.0,109690.0,109680.0,0.18234865]
[1761946537781,2.0,109690.0,109680.0,0.23283865]
[1761946538870,2.0,109690.0,109680.0,0.23298334]
[1761946540682,2.01430061,109690.0,109680.0,0.23598334]
[1761946540885,0.01430061,109690.0,109680.0,0.23598334]
[1761946541320,0.01430061,109690.0,109680.0,0.23698334]
[1761946546406,0.01430061,109690.0,109680.0,0.66626194]
[1761946547781,0.01430061,109690.0,109680.0,0.23698334]
[1761946550513,0.30283509,109700.0,109690.0,0.52233202]
[1761946550691,0.30283509,109700.0,109690.0,1.09283799]
[1761946551279,0.30283509,109700.0,109690.0,1.12023471]
[1761946551842,0.30283509,109700.0,109690.0,1.12223471]
[1761946553287,0.30283509,109700.0,109690.0,1.12823471]
[1761946569434,0.30283509,109700.0,109690.0,1.55596771]
[1761946571640,0.30283509,109700.0,109690.0,1.52857099]
[1761946574168,0.30283509,109700.0,109690.0,1.53039163]
[1761946584726,0.30283509,109700.0,109690.0,1.34805961]
[1761946585063,0.30283509,109700.0,109690.0,1.53039163]
[1761946591564,0.30283509,109700.0,109690.0,0.67338003]
[1761946591805,0.30283509,109700.0,109690.0,0.33338003]
[1761946592443,0.30283509,109700.0,109690.0,0.32738003]
[1761946592847,0.1040752,109700.0,109690.0,0.32738003]
[1761946593086,0.1040752,109700.0,109690.0,0.32838003]
[1761946593731,0.1040752,109700.0,109690.0,0.75688583]
[1761946595166,0.01429758,109720.0,109700.0,0.1823154]
[1761946595381,0.09001237,109740.0,109730.0,0.18226556]
[1761946595613,0.09001237,109740.0,109730.0,0.61077136]
[1761946596057,0.09067888,109740.0,109730.0,1.0410978]
[1761946596273,0.09067888,109740.0,109730.0,1.47263517]
[1761946596491,1e-08,109740.0,109730.0,1.47263517]
[1761946596695,1e-08,109740.0,109730.0,1.47463517]
[1761946597157,1e-08,109740.0,109730.0,1.47863517]
[1761946597581,1e-08,109740.0,109730.0,1.94332325]
[1761946597785,1e-08,109740.0,109730.0,3.94332325]
[1761946598231,1e-08,109740.0,109730.0,3.93732325]
[1761946598442,1e-08,109740.0,109730.0,3.94532325]
[1761946598644,1e-08,109740.0,109730.0,3.95688326]
[1761946599060,1e-08,109740.0,109730.0,3.95888325]
[1761946599265,1e-08,109740.0,109730.0,3.97288325]
[1761946599679,1e-08,109740.0,109730.0,3.97088325]
[1761946599887,1e-08,109740.0,109730.0,3.97488325]
[1761946601160,1e-08,109740.0,109730.0,3.97853408]
[1761946604289,0.0002,109790.0,109780.0,1.13073151]
[1761946604519,0.0002,109800.0,109790.0,0.55834823]
[1761946604764,0.00034478,109800.0,109790.0,1.85568626]
[1761946604994,0.38885692,109860.0,109830.0,0.00910498]
[1761946605233,2.51229,109850.0,109840.0,0.18207589]
[1761946605464,0.00848474,109850.0,109840.0,0.64621169]
[1761946605688,0.00848474,109850.0,109840.0,0.75329906]
[1761946605906,2.01277207,109860.0,109850.0,0.18206645]
[1761946606149,2.03710487,109860.0,109850.0,0.19761645]
[1761946606378,2.01295487,109860.0,109850.0,0.23324645]
[1761946606602,0.01195487,109860.0,109850.0,0.66175225]
[1761946606821,0.01195487,109860.0,109850.0,0.66357289]
[1761946607493,0.00895487,109860.0,109850.0,0.66357289]
[1761946607927,0.01595487,109860.0,109850.0,0.66357289]
[1761946608361,0.01695487,109860.0,109850.0,0.66357289]
[1761946609232,0.00892392,109860.0,109850.0,0.66357289]
[1761946609459,0.01392392,109860.0,109850.0,0.66357289]
[1761946609677,0.00548207,109860.0,109850.0,0.66357289]
[1761946610118,0.01390748,109860.0,109850.0,1.09207869]
[1761946610548,0.01657024,109860.0,109850.0,1.09207869]
[1761946610757,0.01157024,109860.0,109850.0,1.09207869]
[1761946611203,0.00314483,109860.0,109850.0,1.09607869]
[1761946611415,0.00314483,109860.0,109850.0,0.72461556]
[1761946611905,0.00314483,109860.0,109850.0,0.72561556]
[1761946614485,0.00314483,109860.0,109850.0,1.10179784]
[1761946614692,0.0002,109870.0,109860.0,1.00759835]
[1761946614902,0.00034453,109870.0,109860.0,1.13955572]
[1761946615332,0.00028,109880.0,109870.0,0.55821559]
[1761946615545,0.00028,109880.0,109870.0,1.58049253]
[1761946615753,0.00028,109880.0,109870.0,1.58231317]
[1761946616374,0.00028,109880.0,109870.0,1.58595951]
[1761946617364,0.00028,109880.0,109870.0,1.58995951]
[1761946618077,0.00028,109880.0,109870.0,1.59195951]
[1761946618292,0.00028,109880.0,109870.0,1.06658242]
[1761946619204,0.00028,109880.0,109870.0,1.1027647]
[1761946619415,0.00028,109880.0,109870.0,1.58631317]
[1761946619622,0.00028,109880.0,109870.0,1.1017647]
[1761946620071,8e-05,109880.0,109870.0,1.58731317]
[1761946620272,0.0002,109890.0,109880.0,0.55819902]
[1761946620485,0.0002,109900.0,109890.0,0.18200018]
[1761946620692,0.0002,109900.0,109890.0,0.72616866]
[1761946620904,0.00108678,109900.0,109890.0,0.71872865]
[1761946621329,0.00108678,109900.0,109890.0,0.72054929]
[1761946621747,0.00108678,109900.0,109890.0,0.73054929]
[1761946623220,0.00108678,109900.0,109890.0,0.24500082]
[1761946623428,0.00108678,109900.0,109890.0,1.07054929]
[1761946623842,0.00108678,109900.0,109890.0,0.57500082]
[1761946624047,0.00108678,109900.0,109890.0,1.06254929]
[1761946624257,0.00108678,109900.0,109890.0,1.06454929]
[1761946624458,0.00108678,109900.0,109890.0,1.06254929]
[1761946624668,0.00108678,109900.0,109890.0,0.72054929]
[1761946624872,0.01049024,109900.0,109890.0,0.72154929]
[1761946625080,0.01049024,109900.0,109890.0,0.72054929]
[1761946625285,0.00949024,109900.0,109890.0,0.72054929]
[1761946625645,0.01249024,109900.0,109890.0,0.72054929]
[1761946628152,0.01249024,109900.0,109890.0,0.53854911]
[1761946628468,0.01249024,109900.0,109890.0,0.72054929]
[1761946628672,0.01249024,109900.0,109890.0,0.53854911]
[1761946628884,0.02835024,109900.0,109890.0,0.02813064]
[1761946629109,0.02835024,109900.0,109890.0,0.51367911]
[1761946629516,0.02835024,109900.0,109890.0,0.02813064]
[1761946629923,0.05097024,109900.0,109890.0,0.01258064]
[1761946630128,0.05097024,109900.0,109890.0,0.00182064]
[1761946630364,0.02835024,109900.0,109890.0,0.02813064]
[1761946631149,0.23295386,109900.0,109890.0,0.00182064]
[1761946631378,0.05097024,109900.0,109890.0,0.00182064]
[1761946631539,0.23295386,109900.0,109890.0,0.00182064]
[1761946632143,2.23295386,109900.0,109890.0,0.00182064]
[1761946632488,2.66277287,109900.0,109890.0,0.00182064]
[1761946632724,2.57295386,109900.0,109890.0,0.00182064]
[1761946633145,0.18201674,109880.0,109870.0,0.01076]
[1761946633352,0.2119602,109880.0,109870.0,0.01076]
[1761946633554,0.2354302,109880.0,109870.0,0.01076]
[1761946633764,0.2354302,109880.0,109860.0,0.86733809]
[1761946634812,0.2384302,109880.0,109860.0,0.86733809]
[1761946635012,0.05641346,109880.0,109860.0,0.2984528]
[1761946635223,0.05341346,109880.0,109860.0,0.2984528]
[1761946635665,0.23543116,109880.0,109860.0,0.2984528]
[1761946635875,0.23543116,109880.0,109860.0,0.11640737]
[1761946636285,0.05341346,109880.0,109860.0,0.29845194]
[1761946636629,0.05641346,109880.0,109860.0,0.29845194]
[1761946637526,0.05641346,109880.0,109870.0,0.18203331]
[1761946638520,0.05685693,109880.0,109870.0,0.18203331]
[1761946638924,0.05385693,109880.0,109870.0,0.18203331]
[1761946639144,0.05385693,109880.0,109870.0,0.19823331]
[1761946640059,0.05685693,109880.0,109870.0,0.19823331]
[1761946640295,0.03338693,109880.0,109870.0,0.19823331]
[1761946640505,0.01184693,109880.0,109870.0,0.97326403]
[1761946641099,0.01184693,109880.0,109870.0,0.22233331]
[1761946644397,0.01184693,109880.0,109870.0,0.97326403]
[1761946646559,0.01184693,109880.0,109870.0,0.98404403]
[1761946647164,0.01184693,109880.0,109870.0,0.23311331]
[1761946648511,0.01184693,109880.0,109870.0,0.98404403]
[1761946649951,0.06310693,109880.0,109860.0,0.19282457]
[1761946650157,2.0,109870.0,109860.0,0.30717194]
[1761946650406,2.00840346,109870.0,109860.0,0.30717194]
[1761946650625,0.00840346,109870.0,109860.0,0.32318194]
[1761946650839,0.02370346,109870.0,109860.0,0.32318725]
[1761946651044,0.02370346,109870.0,109860.0,0.30037725]
[1761946651260,0.02370346,109870.0,109860.0,0.32318725]
[1761946651466,0.00840346,109870.0,109860.0,0.32318725]
[1761946652704,0.00840346,109870.0,109860.0,0.32418725]
[1761946653093,0.5,109880.0,109860.0,0.32318725]
[1761946653309,0.002,109870.0,109860.0,0.32318725]
[1761946654120,2.44050487,109880.0,109870.0,0.18203331]
[1761946654344,1.96253989,109880.0,109870.0,0.18203331]
[1761946654548,1.97683989,109880.0,109870.0,0.18203331]
[1761946654751,1.97683989,109880.0,109860.0,0.30717725]
[1761946654955,1.926228,109870.0,109860.0,0.30717725]
[1761946655166,1.926228,109870.0,109860.0,0.32318725]
[1761946655586,0.00022176,109870.0,109860.0,0.32318725]
[1761946655813,0.00222176,109870.0,109860.0,0.32318725]
[1761946666200,0.00222176,109870.0,109860.0,1.07411797]
[1761946672565,0.01649846,109870.0,109860.0,1.07411797]
[1761946673144,0.01649846,109870.0,109860.0,0.32318725]
[1761946675376,0.01649846,109870.0,109860.0,0.75052196]
[1761946678329,0.01649846,109870.0,109860.0,0.74928236]
[1761946678986,0.01649846,109870.0,109860.0,0.32194765]
[1761946679221,0.01649846,109870.0,109860.0,0.74928236]
[1761946680491,0.05465846,109870.0,109850.0,0.01076]
[1761946680683,0.23669184,109870.0,109850.0,0.46219924]
[1761946680942,0.02576,109860.0,109850.0,0.66052569]
[1761946681140,0.02576,109860.0,109850.0,0.47845924]
[1761946681344,0.00979,109860.0,109850.0,0.66052569]
[1761946682281,0.02576,109860.0,109850.0,0.45449924]
[1761946683138,0.02576,109860.0,109850.0,0.45549924]
[1761946683356,0.02576,109860.0,109850.0,0.63756569]
[1761946683793,0.02576,109860.0,109850.0,0.66152569]
[1761946684885,0.02576,109860.0,109850.0,0.05212453]
[1761946685061,0.02576,109860.0,109850.0,0.45549924]
[1761946685262,0.02576,109860.0,109850.0,0.02816453]
[1761946685576,0.02576,109860.0,109850.0,0.45549924]
[1761946687875,0.02576,109860.0,109850.0,0.02816453]
[1761946688093,0.02576,109860.0,109850.0,0.45549924]
[1761946688364,0.02576,109860.0,109850.0,0.63756569]
[1761946689249,0.02576,109860.0,109850.0,0.45549924]
[1761946689455,0.02576,109860.0,109850.0,0.63756569]
[1761946689869,0.02576,109860.0,109850.0,0.23419098]
[1761946690078,0.02576,109860.0,109850.0,0.66152569]
[1761946690485,0.02576,109860.0,109850.0,0.47945924]
[1761946691473,0.02576,109860.0,109850.0,0.6377032]
[1761946691682,0.02576,109860.0,109850.0,0.45563675]
[1761946692207,0.02576,109860.0,109850.0,0.6377032]
[1761946692772,0.02576,109860.0,109850.0,0.45563675]
[1761946694361,0.02576,109860.0,109850.0,0.48021675]
[1761946694963,0.02576,109860.0,109850.0,0.05274453]
[1761946695183,0.02576,109860.0,109850.0,0.45563675]
[1761946695983,0.02576,109860.0,109850.0,0.02816453]
[1761946696142,0.02576,109860.0,109850.0,0.45563675]
[1761946697410,0.02576,109860.0,109850.0,0.48021675]
[1761946698567,0.02576,109860.0,109850.0,0.6622832]
[1761946698768,0.02576,109860.0,109850.0,0.48021675]
[1761946700777,0.02576,109860.0,109850.0,0.6622832]
[1761946700985,0.04003835,109860.0,109850.0,0.6622832]
[1761946702747,0.04003835,109860.0,109850.0,0.48021675]
[1761946703416,0.04003835,109860.0,109850.0,0.45563675]
[1761946703828,0.02576,109860.0,109850.0,0.45563675]
[1761946704488,0.02576,109860.0,109850.0,0.6377032]
[1761946704933,0.02576,109860.0,109850.0,0.45563675]
[1761946705171,0.02576,109860.0,109850.0,0.6377032]
[1761946706068,0.02576,109860.0,109850.0,0.21023098]
[1761946706276,0.02576,109860.0,109850.0,0.45563675]
[1761946706671,0.02576,109860.0,109850.0,0.6377032]
[1761946707470,0.02576,109860.0,109850.0,0.6605132]
[1761946709080,0.02576,109860.0,109850.0,0.6377032]
[1761946709280,0.02576,109860.0,109850.0,0.45563675]
[1761946709888,2.15622788,109860.0,109850.0,0.00114453]
[1761946710095,2.9237001,109860.0,109850.0,0.00114453]
[1761946710939,2.9237001,109860.0,109850.0,0.00014453]
[1761946711141,2.9277001,109860.0,109850.0,0.00014453]
[1761946711353,2.9287001,109860.0,109850.0,0.00014453]
[1761946713093,2.319178,109860.0,109850.0,0.00014453]
[1761946713298,2.47903788,109860.0,109850.0,0.00014453]
[1761946713545,2.9287001,109860.0,109850.0,0.00014453]
[1761946719396,2.7263431,109860.0,109850.0,0.00014453]
[1761946720171,2.74062254,109860.0,109850.0,0.00014453]
[1761946721078,2.31315032,109860.0,109850.0,0.00014453]
[1761946721274,2.74062254,109860.0,109850.0,0.00014453]
[1761946722747,2.31315032,109860.0,109850.0,0.00014453]
[1761946722904,2.74062254,109860.0,109850.0,0.00014453]
[1761946724383,2.13110044,109860.0,109850.0,0.00014453]
[1761946724514,2.10891044,109860.0,109850.0,0.18221098]
[1761946724903,0.01927944,109860.0,109850.0,0.6600532]
[1761946725547,1.915905,109880.0,109870.0,0.19365331]
[1761946725757,1.915905,109880.0,109870.0,0.027]
[1761946725968,1.915905,109880.0,109870.0,0.20903331]
[1761946726226,1.60204565,109880.0,109870.0,0.05037]
[1761946726631,1.61004565,109880.0,109870.0,0.47784222]
[1761946727015,1.61204565,109880.0,109870.0,0.47784222]
[1761946727213,1.61204565,109880.0,109870.0,0.65987553]
[1761946727424,1.59776819,109880.0,109870.0,0.47784222]
[1761946727631,1.59776819,109880.0,109870.0,0.05037]
[1761946727832,1.59776819,109880.0,109870.0,0.65987553]
[1761946728866,1.58776819,109880.0,109870.0,0.65987553]
[1761946729069,1.59076819,109880.0,109870.0,0.65987553]
[1761946729271,1.59176819,109880.0,109870.0,0.65987553]
[1761946729474,1.59076819,109880.0,109870.0,0.65987553]